[Event "Budapest GM ONE WEEK Feb 2024"]
[Site "Budapest"]
[Date "2024.03.01"]
[Round "7.5"]
[White "Gaal, Zsoka"]
[Black "Paszewski, Mateusz"]
[Result "0-1"]
[ECO "A08"]
[WhiteElo "2341"]
[BlackElo "2286"]
[Annotator "TA"]
[PlyCount "128"]
[EventDate "2024.02.25"]
[EventType "tourn"]
[EventCountry "HUN"]
[SourceTitle "playchess.com"]
[Source "ChessBase"]
[SourceQuality "1"]
[TimeControl "5400+30"]

1. Nf3 {[%emt 0:00:17]} d5 {[%emt 0:00:07]} 2. g3 {[%emt 0:00:08]} Nf6 {[%emt 0:00:51]} 3. Bg2 {[%emt 0:00:10]} e6 {[%emt 0:00:03]} 4. O-O {[%emt 0:00:35]} c5 {[%emt 0:00:13]} 5. d3 {[%emt 0:03:38]} Nc6 {[%emt 0:00:41]} 6. Nbd2 {[%emt 0:01:40]} Be7 {[%emt 0:00:48]} 7. e4 {[%emt 0:00:09]} O-O {[%emt 0:01:58]} 8. Re1 {[%emt 0:01:08]} h6 {[%emt 0:01:58] C00: French: Unusual White 2nd moves.} 9. e5 {[%emt 0:00:52] 9.c3 deserves study.} Nh7 {[%emt 0:00:54]} 10. h4 {[%emt 0:03:44]} Qc7 {[%emt 0:01:36]} 11. Nf1 {[%emt 0:01:12]} b5 {[%emt 0:05:33]} 12. Bf4 {[%emt 0:11:35]} a5 {[%emt 0:05:40]} 13. N1h2 {[%emt 0:03:02]} a4 $146 {[%emt 0:10:59]} ({Predecessor:} 13... Ba6 14. Ng4 Kh8 15. Qd2 Rg8 16. h5 b4 17. c3 a4 18. Rec1 a3 19. cxb4 axb2 20. Qxb2 {1-0 Sachi,J (1743)-Jiang,T (1917) Wch U14 Girls 2023 (2)}) 14. a3 {[%emt 0:00:08]} Bb7 {[%emt 0:00:10]} 15. Ng4 {[%emt 0:03:05]} Rfc8 {[%emt 0:03:31]} 16. Nfh2 {[%emt 0:18:16]} Bf8 {[%emt 0:18:45]} 17. Nxh6+ {[%emt 0:04:02]} gxh6 {[%emt 0:01:21]} 18. Qg4+ {[%emt 0:00:33]} Kh8 {[%emt 0:01:44]} 19. Qh5 {[%emt 0:01:51]} Bg7 {[%emt 0:13:36]} 20. Ng4 {[%emt 0:01:53]} Rg8 {[%emt 0:03:52]} 21. c4 {[%emt 0:06:00]} bxc4 {[%emt 0:02:31]} 22. dxc4 {[%emt 0:00:06]} Nd4 {[%emt 0:07:14]} 23. cxd5 {[%emt 0:00:37]} Bxd5 {[%emt 0:04:15]} 24. Bxd5 {[%emt 0:00:19]} exd5 {[%emt 0:00:21]} 25. e6 {[%emt 0:00:11]} Qb7 {[%emt 0:05:35]} 26. exf7 {[%emt 0:12:10]} Nf3+ {[%emt 0:00:51]} 27. Kf1 {[%emt 0:06:18]} Rgf8 {[%emt 0:01:46]} 28. Re8 {[%emt 0:01:18] [#]} Qb5+ $2 {[%emt 0:05:38]} (28... Qxb2 29. Rc1 Nd2+ 30. Bxd2 Qxd2 31. Rxc5 $11) ({Better is} 28... d4 $1 $19 29. Rxa8 (29. Nxh6 $2 Nf6 $19) (29. Rc1 $2 $19)) 29. Kg2 $11 {[%emt 0:00:06]} Raxe8 {[%emt 0:00:35]} (29... Qxb2 $2 30. Rc1 Qb7 31. Nxh6 $18 (31. Kxf3 d4+ 32. Re4 Rac8 $16)) 30. fxe8=Q {[%emt 0:00:09]} Rxe8 {[%emt 0:01:09]} (30... Qxe8 $11 31. Qxe8 Nxh4+ (31... Rxe8 32. Kxf3 Bxb2 33. Rb1 $18) 32. gxh4 Rxe8) 31. Kxf3 $16 {[%emt 0:01:48]} Qd3+ {[%emt 0:00:47]} (31... d4 $16 32. Kg2 (32. Nxh6 $2 Qc6+ 33. Kg4 Nf6+ 34. Kh3 Nxh5 $19) 32... Re2) 32. Kg2 $18 {[%emt 0:00:09]} Re2 {[%emt 0:00:26] [#]} 33. Bxh6 {[%emt 0:01:42]} (33. Nxh6 $6 Nf6 34. Qf5 Qe4+ 35. Kg1 Bxh6 36. Qxf6+ Bg7 $16) ({White has to play} 33. Rf1 $1 $18) 33... Bd4 $2 {[%emt 0:00:54][%mdl 8192]} (33... Bxh6 $16 34. Qxh6 Qf5) 34. Qxd5 {[%emt 0:02:03]} Nf6 {[%emt 0:00:15]} 35. Qd8+ $2 {[%emt 0:03:59]} (35. Qa8+ $18 Re8 36. Qf3 (36. Qxa4 Qe4+ 37. f3 Qe2+ 38. Kh3 Qxf3 $18) 36... Qxf3+ 37. Kxf3 Nxg4 38. Kxg4 Bxf2 39. Kg5) 35... Ng8 $2 {[%emt 0:00:41][%mdl 8192]} (35... Re8 $11 {and Black has nothing to worry.} 36. Bg7+ Kxg7 37. Qc7+ Kh8 38. Nxf6 Bxf6 39. Qxc5 Qe4+ (39... Bxb2 40. Qh5+ Kg7 41. Qxe8 $16) 40. Kh2 Bxb2) 36. Bf4 $18 {[%emt 0:01:21]} Qe4+ {[%emt 0:00:29]} 37. Kg1 $4 {[%emt 0:00:12][%mdl 8192]} (37. Kh3 $18 {avoids the disaster.}) 37... Qf3 $1 $19 {[%emt 0:00:28]} 38. Be5+ $2 {[%emt 0:03:58]} (38. Rf1 Qxg4 39. Qf8) 38... Bxe5 {[%emt 0:00:22]} 39. Qg5 {[%emt 0:00:13]} Bd4 {[%emt 0:00:35]} ({But not} 39... Bxb2 40. Rb1 $19) 40. Qh5+ $2 {[%emt 0:00:35]} (40. Kh2 {was called for.}) 40... Kg7 $19 {[%emt 0:00:01]} 41. Qg5+ {[%emt 0:00:01]} Kf7 {[%emt 0:01:08]} 42. Kh2 {[%emt 0:01:15]} Nf6 {[%emt 0:00:27]} (42... Bxf2 43. Ne5+ Rxe5 44. Qxe5 $15) 43. Kh3 {[%emt 0:01:37]} Qxg4+ {[%emt 0:00:16]} 44. Qxg4 {[%emt 0:00:04]} Nxg4 {[%emt 0:00:01]} 45. Kxg4 {[%emt 0:00:02]} Rxf2 {[%emt 0:00:09]} 46. h5 {[%emt 0:00:28]} Rxb2 {[%emt 0:00:03]} 47. Rf1+ {[%emt 0:00:09]} Ke6 {[%emt 0:00:48]} 48. h6 {[%emt 0:00:27]} Rh2 {[%emt 0:00:07]} 49. Re1+ {[%emt 0:00:17]} Kf6 {[%emt 0:00:19]} 50. Rf1+ {[%emt 0:00:16]} Kg6 {[%emt 0:00:16]} 51. Rf8 {[%emt 0:00:08]} Ra2 {[%emt 0:01:19]} (51... c4 $142 52. Rd8 Bf6 53. Rg8+ Kxh6) 52. Ra8 $19 {[%emt 0:00:44]} Rxa3 {[%emt 0:01:10]} 53. Ra6+ {[%emt 0:00:06]} Kh7 {[%emt 0:00:01]} 54. Kh5 {[%emt 0:02:34]} Rxg3 {[%emt 0:00:12]} 55. Ra7+ {[%emt 0:00:03]} Kg8 {[%emt 0:00:02]} 56. Rxa4 {[%emt 0:01:18]} Kf7 {[%emt 0:00:18]} 57. Ra6 {[%emt 0:01:30]} Rg1 {[%emt 0:00:55]} 58. Rc6 {[%emt 0:00:29]} Ke7 {[%emt 0:00:11]} 59. h7 {[%emt 0:00:46]} Kd7 {[%emt 0:01:36]} 60. Ra6 {[%emt 0:00:14]} Re1 {[%emt 0:01:11]} (60... Be5 $142 61. Ra4 Kd6 (61... Rh1+ $2 62. Kg6 $19) 62. Ra8 Rh1+ 63. Kg6 c4 64. Rd8+ Ke7 65. Rd2 c3 66. Rf2 Kd6 67. Rg2 Kc5 68. Kf5 Bd4 69. Kg5 Rxh7 70. Kf4 Kc4 71. Ra2 Kd3 72. Ra3 Rf7+ 73. Kg4 Ra7 74. Rb3 Kc4 75. Rb1 Rg7+ 76. Kf3 Rg1 77. Rxg1 Bxg1 78. Kg2 c2 79. Kxg1 c1=Q+ (79... c1=B 80. Kh2 $11) 80. Kg2 Qg5+ 81. Kf2 Kd3 82. Kf3 Qh4 83. Kg2 Ke3 84. Kg1 Kf3 85. Kf1 Qh1#) 61. Ra8 {[%emt 0:01:45]} Kc6 {[%emt 0:00:17]} 62. Kg6 {[%emt 0:00:42]} Rh1 {[%emt 0:00:33]} 63. Rc8+ {[%emt 0:00:35]} Kd5 {[%emt 0:00:06]} 64. Rc7 {[%emt 0:00:23]} Ke4 {[%emt 0:00:09]} 0-1

[Event "Budapest GM ONE WEEK Feb 2024"]
[Site "Budapest"]
[Date "2024.03.01"]
[Round "8.1"]
[White "Grover, Sahaj"]
[Black "Paszewski, Mateusz"]
[Result "1/2-1/2"]
[ECO "B12"]
[WhiteElo "2503"]
[BlackElo "2286"]
[Annotator "TA"]
[PlyCount "73"]
[EventDate "2024.02.25"]
[EventType "tourn"]
[EventCountry "HUN"]
[SourceTitle "playchess.com"]
[Source "ChessBase"]
[SourceQuality "1"]
[TimeControl "5400+30"]

{[%evp 12,73,12,0,5,9,20,11,12,19,11,0,11,16,25,39,35,34,27,-21,-35,-36,0,0,18,16,13,12,25,16,28,0,0,0,0,0,0,0,0,0,122,58,127,50,46,0,0,-150,-150,-118,-62,-53,-17,-60,-66,-56,-56,-56,0,-43,0,-56,0,-68]} 1. e4 {[%emt 0:07:45]} c6 {[%emt 0:00:22]} 2. d4 {[%emt 0:00:20]} d5 {[%emt 0:00:04]} 3. e5 {[%emt 0:00:05]} Bf5 {[%emt 0:00:04]} 4. Bd3 {[%emt 0:00:04]} Bxd3 {[%emt 0:01:21]} 5. Qxd3 {[%emt 0:00:06]} e6 {[%emt 0:00:09]} 6. Ne2 {[%emt 0:00:05]} c5 {[%emt 0:01:01]} 7. c3 {[%emt 0:00:06]} cxd4 {[%emt 0:14:48]} 8. cxd4 {[%emt 0:01:20]} Bb4+ {[%emt 0:00:03]} 9. Nbc3 {[%emt 0:02:32]} Nc6 {[%emt 0:00:27]} 10. O-O {[%emt 0:01:38]} Nge7 {[%emt 0:01:16]} 11. Na4 {[%emt 0:03:56]} Qa5 {[%emt 0:07:33]} 12. b3 {[%emt 0:02:59] [#] a3 is the strong threat.} Qa6 {[%emt 0:13:27]} 13. Qxa6 {[%emt 0:11:15]} bxa6 {[%emt 0:00:27]} 14. a3 {[%emt 0:00:06][%cal Ba2a3,Ba3b4,Bb4c5][%mdl 32]} Ba5 {[%emt 0:00:05]} 15. Nc5 {[%emt 0:00:16]} (15. Bb2 {feels stronger.}) 15... Bb6 $11 {[%emt 0:02:24]} 16. b4 {[%emt 0:04:08]} a5 {[%emt 0:03:59]} 17. Bd2 $1 {[%emt 0:00:06]} axb4 {[%emt 0:02:42]} 18. axb4 {[%emt 0:00:05]} O-O {[%emt 0:15:56][%cal Bh8f8,Bf8b8,Bb8b2][%mdl 32]} 19. Ra6 {[%emt 0:05:21]} Bxc5 {[%emt 0:06:30]} 20. bxc5 {[%emt 0:00:06]} Rfb8 {[%emt 0:02:53]} 21. Bg5 {[%emt 0:01:46]} Rb2 {[%emt 0:02:37]} 22. Bxe7 {[%emt 0:11:39]} Nxe7 {[%emt 0:00:06]} 23. Re1 {[%emt 0:00:03]} Rab8 {[%emt 0:01:55][%cal Ob2e2]} 24. g4 {[%emt 0:03:56]} (24. Rxa7 $2 {loses.} Rxe2 25. Kf1 Rxe1+ (25... Nc6 $2 26. Kxe2 Nxa7 27. Ke3 $19) 26. Kxe1 Nc6 $19) 24... R8b7 {[%emt 0:01:00]} 25. Rd6 {[%emt 0:01:55][%cal Rd6d8]} Ng6 {[%emt 0:10:43]} (25... g5 $11 {remains equal.}) 26. Rd8+ $16 {[%emt 0:07:57]} Nf8 {[%emt 0:00:01] [#]} 27. Kf1 {[%emt 0:01:04]} ({Better is} 27. f4 $1 $16) 27... Rc2 $1 $14 {[%emt 0:01:07]} 28. Nf4 {[%emt 0:04:40]} (28. Rc1 $2 Rxc1+ 29. Nxc1 Rb1 $19) (28. Ng3 $14) 28... g5 $11 {[%emt 0:02:33]} 29. Ne2 {[%emt 0:01:07]} (29. c6 $11 Rbb2 (29... Rxc6 30. Nh5 $11) 30. Nh5 (30. Nd3 Rb6 $11)) 29... Rbb2 $17 {[%emt 0:02:40]} 30. Ra8 {[%emt 0:02:18]} Ra2 {[%emt 0:00:28]} (30... Kg7 $17 {...Ng6 would now be deadly.} 31. Rxa7 Ng6) 31. Rb8 $1 $15 {[%emt 0:07:57]} Kg7 {[%emt 0:00:30]} 32. Rbb1 {[%emt 0:01:22]} Ng6 {[%emt 0:01:52] Threatens to win with ...Nf4.} 33. Rbc1 $1 {[%emt 0:00:07]} Rcb2 {[%emt 0:00:39] Strongly threatening ...Nf4.} 34. Rb1 {[%emt 0:02:44]} Rc2 {[%emt 0:00:03] aiming for ...Nf4.} 35. Rbc1 $1 {[%emt 0:00:05]} Rcb2 {[%emt 0:00:01] White must now prevent ...Nf4.} 36. Rb1 $1 {[%emt 0:00:53]} Rc2 {[%emt 0:00:01] Hoping for ...Nf4.} 37. Rbc1 $1 {[%emt 0:02:36] Weighted Error Value: White=0.15 (very precise) /Black=0.21 (precise) .  Mistake:       	White=4     	Black=2      Inaccurate:     	White=2     	Black=3      OK:         	White=9     	Black=11     Best:        	White=2     	Black=1      Strong:       	White=6     	Black=1} 1/2-1/2

[Event "Budapest GM ONE WEEK Feb 2024"]
[Site "Budapest"]
[Date "2024.03.01"]
[Round "8.2"]
[White "Tomic, Aleksandar"]
[Black "Gaal, Zsoka"]
[Result "1/2-1/2"]
[ECO "A46"]
[WhiteElo "2398"]
[BlackElo "2341"]
[Annotator "TA"]
[PlyCount "91"]
[EventDate "2024.02.25"]
[EventType "tourn"]
[EventCountry "HUN"]
[SourceTitle "playchess.com"]
[Source "ChessBase"]
[SourceQuality "1"]
[TimeControl "5400+30"]

{[%evp 9,91,5,8,9,12,11,12,10,11,0,12,8,6,6,0,0,0,0,0,0,0,0,32,0,0,0,8,7,0,0,59,0,0,0,31,13,24,0,0,0,0,0,0,0,0,-17,0,0,0,-11,0,-118,0,0,0,0,0,0,0,0,0,0,0,0,0,0,0,0,0,0,53,53,53,53,133,151,154,146,179,156,151,109,124,41]} 1. d4 {[%emt 0:00:47]} Nf6 {[%emt 0:00:16]} 2. Nf3 {[%emt 0:00:42]} e6 {[%emt 0:00:12]} 3. Bf4 {[%emt 0:01:55]} d5 {[%emt 0:00:34]} 4. e3 {[%emt 0:00:27]} c5 {[%emt 0:01:32]} 5. Nbd2 {[%emt 0:01:51]} Qb6 {[%emt 0:00:20]} 6. Rb1 {[%emt 0:04:05]} cxd4 {[%emt 0:00:36]} 7. exd4 {[%emt 0:00:40]} Bd7 {[%emt 0:00:17]} 8. c3 {[%emt 0:07:45] The position is equal.} Bb5 {[%emt 0:01:14]} 9. Bxb8 {[%emt 0:04:52]} Rxb8 {[%emt 0:05:55]} 10. Qb3 {[%emt 0:00:25]} Bxf1 {[%emt 0:02:37]} 11. Qxb6 axb6 {[%emt 0:00:06]} 12. Kxf1 {[%emt 0:01:23]} Bd6 {[%emt 0:03:51]} 13. g3 {[%emt 0:01:37]} Nd7 {[%emt 0:00:47]} 14. Kg2 {[%emt 0:00:51]} b5 {[%emt 0:00:30]} 15. a3 {[%emt 0:00:44]} f6 {[%emt 0:03:07]} 16. Ne1 {[%emt 0:09:21]} g5 {[%emt 0:04:44]} 17. Nd3 {[%emt 0:10:50]} Kf7 {[%emt 0:02:33]} 18. Rbe1 {[%emt 0:02:33]} Ra8 {[%emt 0:06:28]} 19. Re2 {[%emt 0:01:16]} Nf8 {[%emt 0:05:30]} (19... Rae8 $11) 20. Rhe1 {[%emt 0:02:42]} (20. h4 $14 g4 21. Rhe1) 20... h5 {[%emt 0:00:53][%cal Bh7h5,Bh5h4][%mdl 32]} 21. Nb3 {[%emt 0:02:24]} b6 {[%emt 0:00:30] Inhibits Nbc5.} 22. h3 {[%emt 0:03:20]} h4 {[%emt 0:01:08]} 23. g4 {[%emt 0:00:22]} Re8 {[%emt 0:02:07]} 24. Na1 {[%emt 0:04:55]} Ng6 {[%emt 0:00:33]} 25. Nc2 {[%emt 0:02:30]} Re7 {[%emt 0:05:09]} 26. Ne3 {[%emt 0:02:19]} Rg8 27. Nc2 {[%emt 0:04:41]} Rge8 {[%emt 0:02:50]} 28. Ne3 {[%emt 0:07:26]} Ra8 {[%emt 0:00:59]} 29. Nc2 {[%emt 0:01:41]} Rc8 {[%emt 0:01:16]} 30. Ne3 {[%emt 0:08:06] [#]} (30. Rd2 $11) 30... Ke8 {[%emt 0:00:04]} ({Black should play} 30... Bxa3 $1 $17 31. Ra1 (31. bxa3 $2 Rxc3 32. Nb4 Nf4+ 33. Kf1 Nxe2 $17) 31... Bd6) 31. Kf1 {[%emt 0:00:30]} Kd7 {[%emt 0:00:30]} 32. Ng2 {[%emt 0:00:30]} Rce8 {[%emt 0:04:24]} 33. Kg1 {[%emt 0:02:11]} Rg8 {[%emt 0:06:44]} 34. Kh1 {[%emt 0:01:56]} Rge8 {[%emt 0:04:21]} 35. Kg1 {[%emt 0:00:08]} e5 {[%emt 0:03:33]} 36. dxe5 {[%emt 0:00:37]} fxe5 {[%emt 0:00:52]} 37. Rd1 {[%emt 0:00:20]} Kc6 {[%emt 0:06:33]} 38. Red2 {[%emt 0:00:55]} e4 {[%emt 0:01:06]} 39. Nde1 {[%emt 0:02:04]} Nf4 {[%emt 0:06:10]} ({Much worse is} 39... Re5 $6 40. Nc2 $16) (39... Bc5 $1 $11) 40. Nxf4 $14 {[%emt 0:00:55]} Bxf4 {[%emt 0:00:06]} 41. Re2 {[%emt 0:01:46]} ({Reject} 41. Rxd5 e3 42. fxe3 Rxe3 $15) 41... e3 {[%emt 0:02:57] [#]} (41... Rd8 $14) 42. f3 $1 $16 d4 43. Rxd4 ({But not} 43. cxd4 Kd6 $16) 43... Rd7 44. Rxd7 Kxd7 45. Kf1 Kc6 46. Rc2 {Weighted Error Value: White=0.11 (very precise) /Black=0.13 (very precise) .  Mistake:       	White=3     	Black=4      Inaccurate:     	White=1     	Black=2      OK:         	White=12    	Black=13     Best:        	White=1     	Black=1      Strong:       	White=1     	---} ({White should try} 46. Nc2 $16) 1/2-1/2

[Event "Budapest GM ONE WEEK Feb 2024"]
[Site "Budapest"]
[Date "2024.03.01"]
[Round "8.3"]
[White "Pribelszky, Bence"]
[Black "Pasti, Aron"]
[Result "1/2-1/2"]
[ECO "E44"]
[WhiteElo "2371"]
[BlackElo "2389"]
[Annotator "TA"]
[PlyCount "25"]
[EventDate "2024.02.25"]
[EventType "tourn"]
[EventCountry "HUN"]
[SourceTitle "playchess.com"]
[Source "ChessBase"]
[SourceQuality "1"]
[TimeControl "5400+30"]

{[%evp 14,25,36,16,22,-2,34,0,0,0,0,-17,-21,-20]} 1. d4 {[%emt 0:02:39]} Nf6 {[%emt 0:00:02]} 2. c4 {[%emt 0:00:06]} e6 {[%emt 0:00:01]} 3. Nc3 {[%emt 0:00:04]} Bb4 {[%emt 0:00:12]} 4. e3 {[%emt 0:00:10]} b6 {[%emt 0:00:59]} 5. Nge2 {[%emt 0:02:15]} Bb7 {[%emt 0:02:31]} 6. a3 {[%emt 0:00:08]} Be7 {[%emt 0:04:55]} 7. d5 {[%emt 0:00:08]} O-O {[%emt 0:01:31]} 8. g3 {[%emt 0:13:19]} b5 {[%emt 0:03:58]} 9. b3 {[%emt 0:20:45]} d6 {[%emt 0:14:50]} 10. e4 {[%emt 0:12:00]} ({Bitte nicht} 10. cxb5 Nxd5 11. Rg1 Bf6 $17) 10... bxc4 {[%emt 0:01:52] Die Stellung ist ausgeglichen.} 11. bxc4 {[%emt 0:01:10]} Nfd7 {[%emt 0:04:08]} 12. Nd4 {[%emt 0:03:20]} Bf6 {[%emt 0:03:47]} 13. Rb1 {[%emt 0:11:43] Nicht viel passiert in dieser Partie.   Gewichteter Fehlerwert: Weiß=0.23 (präzise) /Schwarz=0.07 (makellos) .  Ungenau:       	Weiß=1     	Schwarz=1     OK:         	---       	Schwarz=2} 1/2-1/2

[Event "Budapest GM ONE WEEK Feb 2024"]
[Site "Budapest"]
[Date "2024.03.01"]
[Round "8.4"]
[White "Bodi, Tibor"]
[Black "Paschall, William"]
[Result "1/2-1/2"]
[ECO "B27"]
[WhiteElo "2294"]
[BlackElo "2331"]
[Annotator "TA"]
[PlyCount "35"]
[EventDate "2024.02.25"]
[EventType "tourn"]
[EventCountry "HUN"]
[SourceTitle "playchess.com"]
[Source "ChessBase"]
[SourceQuality "1"]
[TimeControl "5400+30"]

{[%evp 12,35,16,18,11,26,23,12,17,-39,-34,-76,-77,-74,-9,-17,-22,-27,-9,-25,-29,-35,-33,-38,-28,-59]} 1. e4 {[%emt 0:00:30][%cal Be2e4,Be4e5,Be5d6][%mdl 32]} c5 {[%emt 0:01:16]} 2. Nf3 {[%emt 0:00:12]} g6 {[%emt 0:02:05]} 3. d4 {[%emt 0:10:55]} cxd4 {[%emt 0:00:41]} 4. Qxd4 {[%emt 0:00:09]} Nf6 {[%emt 0:00:07]} 5. e5 {[%emt 0:00:12]} Nc6 {[%emt 0:00:13]} 6. Qa4 {[%emt 0:04:09]} Nd5 {[%emt 0:00:30]} 7. Qe4 {[%emt 0:00:14]} Nb6 {[%emt 0:00:56]} 8. Nc3 {[%emt 0:04:59]} d5 {[%emt 0:04:18]} 9. exd6 {[%emt 0:00:45]} Bf5 $1 {[%emt 0:01:02] Die Stellung ist ausgeglichen.} 10. Qf4 {[%emt 0:05:36]} ({Vorzuziehen ist} 10. Qe2 $11) 10... Bg7 $15 {[%emt 0:05:51]} 11. Bd3 {[%emt 0:07:25]} Bxd3 {[%emt 0:03:37]} ({Natürlich nicht} 11... Qxd6 $6 12. Qxd6 exd6 13. Bxf5 gxf5 14. Ne2 $16) 12. cxd3 {[%emt 0:00:10]} Qxd6 {[%emt 0:02:11]} (12... e5 $17 13. Qg4 Qxd6) 13. Qxd6 $11 {[%emt 0:00:17]} exd6 {[%emt 0:00:06]} 14. O-O {[%emt 0:00:57]} Kd7 {[%emt 0:02:57]} 15. Be3 {[%emt 0:00:44]} Nc8 {[%emt 0:07:00]} 16. Rfe1 {[%emt 0:05:16]} N8e7 {[%emt 0:02:01]} 17. Kf1 {[%emt 0:01:46]} h6 {[%emt 0:01:03]} 18. Ke2 {[%emt 0:00:41] Gewichteter Fehlerwert: Weiß=0.19 (sehr präzise) /Schwarz=0.10 (sehr präzise) .  Fehler:       	Weiß=1     	Schwarz=1     Ungenau:       	Weiß=2     	---        OK:         	Weiß=2     	Schwarz=4     Bester:       	Weiß=1     	Schwarz=1     Stark:        	---       	Schwarz=1} 1/2-1/2

[Event "Budapest GM ONE WEEK Feb 2024"]
[Site "Budapest"]
[Date "2024.03.02"]
[Round "9.2"]
[White "Paschall, William"]
[Black "Pap, Misa"]
[Result "1-0"]
[ECO "A04"]
[WhiteElo "2331"]
[BlackElo "2422"]
[Annotator "RC"]
[PlyCount "191"]
[EventDate "2024.02.25"]
[EventType "tourn"]
[EventCountry "HUN"]
[SourceTitle "playchess.com"]
[Source "ChessBase"]
[SourceQuality "1"]
[TimeControl "5400+30"]

1. Nf3 {[%emt 0:00:25]} f5 {[%emt 0:00:31]} 2. d3 {[%emt 0:03:57]} Nc6 {[%emt 0:01:29]} 3. e4 {[%emt 0:01:00]} e5 {[%emt 0:00:05]} 4. d4 {[%emt 0:01:04]} fxe4 {[%emt 0:02:35]} 5. Nxe5 {[%emt 0:00:18]} Nf6 {[%emt 0:00:24]} 6. Bc4 {[%emt 0:01:54]} d5 {[%emt 0:01:19]} 7. Bb5 {[%emt 0:00:47]} Bd7 {[%emt 0:03:06]} 8. Nc3 {[%emt 0:09:55]} Bb4 {[%emt 0:03:44]} 9. Bxc6 {[%emt 0:14:12]} bxc6 {[%emt 0:00:20]} 10. O-O {[%emt 0:02:15]} O-O {[%emt 0:00:17]} 11. Bg5 {[%emt 0:04:25]} Qe8 {[%emt 0:09:16]} 12. f3 {[%emt 0:08:20]} Bc8 {[%emt 0:13:28]} 13. a3 {[%emt 0:09:50]} Bxc3 {[%emt 0:06:59]} 14. bxc3 {[%emt 0:01:46]} Ba6 {[%emt 0:10:51]} 15. Re1 {[%emt 0:03:44]} Nd7 {[%emt 0:21:34]} 16. Nxd7 {[%emt 0:10:39]} Qxd7 {[%emt 0:00:07]} 17. fxe4 {[%emt 0:01:07]} dxe4 {[%emt 0:00:04]} 18. Be3 {[%emt 0:03:26]} Rf6 {[%emt 0:01:24]} 19. Qh5 {[%emt 0:02:31]} Qd5 {[%emt 0:06:23]} 20. Qe5 {[%emt 0:02:37]} Raf8 {[%emt 0:00:17]} 21. h3 {[%emt 0:00:34]} Qf7 {[%emt 0:05:02]} 22. Kh2 {[%emt 0:04:48]} Bc4 {[%emt 0:00:22]} 23. Rad1 {[%emt 0:00:50]} Re8 {[%emt 0:01:23]} 24. Qc5 {[%emt 0:00:30]} a6 {[%emt 0:00:22]} 25. Rd2 {[%emt 0:01:25]} Qd5 {[%emt 0:00:10]} 26. Rf2 {[%emt 0:01:30]} Ref8 {[%emt 0:01:22]} 27. Rxf6 {[%emt 0:00:26]} Rxf6 {[%emt 0:00:07]} 28. Rb1 {[%emt 0:00:45]} h6 {[%emt 0:02:59]} 29. Rb4 {[%emt 0:00:53]} Be2 {[%emt 0:00:15]} 30. Qe7 {[%emt 0:00:59]} Qd6+ {[%emt 0:00:18]} 31. Qxd6 {[%emt 0:00:04]} cxd6 {[%emt 0:00:06]} 32. c4 {[%emt 0:00:31]} d5 {[%emt 0:01:37]} 33. Rb8+ {[%emt 0:00:42]} Kh7 {[%emt 0:00:19]} 34. c5 {[%emt 0:00:35]} Bb5 {[%emt 0:01:02]} 35. Rb6 {[%emt 0:01:04]} a5 {[%emt 0:00:54]} 36. Rb7 {[%emt 0:00:29]} a4 {[%emt 0:00:40]} 37. Kg3 {[%emt 0:00:11]} Bf1 {[%emt 0:00:54]} 38. Kh2 {[%emt 0:00:42]} h5 {[%emt 0:01:29]} 39. Rb1 {[%emt 0:01:04]} Kg6 {[%emt 0:00:55]} 40. h4 {[%emt 0:00:40]} Bb5 {[%emt 0:00:58]} 41. Kg3 {[%emt 0:00:46]} Kf5 {[%emt 0:00:09]} 42. Bg5 {[%emt 0:00:25]} Re6 {[%emt 0:00:30]} 43. Re1 {[%emt 0:00:17]} Re8 {[%emt 0:00:06]} 44. Be3 {[%emt 0:00:32]} Rf8 {[%emt 0:00:43]} 45. Bf4 {[%emt 0:00:51]} Rf7 {[%emt 0:00:19]} 46. Bg5 {[%emt 0:00:56]} Ke6 {[%emt 0:00:14]} 47. Bf4 {[%emt 0:00:16]} Kd7 {[%emt 0:00:21]} 48. Be5 {[%emt 0:01:02]} Kc8 {[%emt 0:00:57]} 49. Bf4 {[%emt 0:00:24]} Kb7 {[%emt 0:00:04]} 50. Bg5 {[%emt 0:00:30]} Ka6 {[%emt 0:00:15]} 51. Bf4 {[%emt 0:00:29]} Rb7 {[%emt 0:00:42]} 52. Rb1 {[%emt 0:00:21]} Rf7 {[%emt 0:02:17]} 53. Re1 {[%emt 0:00:47]} Ka7 {[%emt 0:00:22]} 54. Bg5 {[%emt 0:00:19]} Bc4 {[%emt 0:00:10]} 55. Rb1 {[%emt 0:00:22]} Be2 {[%emt 0:00:37]} 56. Rb4 {[%emt 0:00:28]} Bb5 {[%emt 0:00:24]} 57. Rb1 {[%emt 0:00:26]} Kb7 {[%emt 0:00:33]} 58. Bf4 {[%emt 0:00:20]} Kc8 {[%emt 0:00:05]} 59. Re1 {[%emt 0:00:39]} Rb7 {[%emt 0:00:22]} 60. Rb1 {[%emt 0:00:08]} Kd7 {[%emt 0:00:05]} 61. Bg5 {[%emt 0:00:52]} Ke6 {[%emt 0:00:04]} 62. Bf4 {[%emt 0:00:22]} Kf5 {[%emt 0:00:04]} 63. Be3 {[%emt 0:00:45]} Re7 {[%emt 0:00:25]} 64. Re1 {[%emt 0:00:21]} Re6 {[%emt 0:00:21]} 65. Bg5 {[%emt 0:00:54]} Rg6 {[%emt 0:01:33]} 66. Re3 {[%emt 0:00:23]} Bc4 {[%emt 0:01:08]} 67. Re1 {[%emt 0:00:11]} Re6 {[%emt 0:00:12]} 68. Be3 {[%emt 0:00:20]} Re8 {[%emt 0:00:26]} 69. Rb1 {[%emt 0:00:14]} Bb5 {[%emt 0:01:30]} 70. Re1 {[%emt 0:00:11]} Re6 {[%emt 0:00:36]} 71. Bg5 {[%emt 0:00:16]} Ba6 {[%emt 0:01:01]} 72. Be3 {[%emt 0:00:31]} Rg6+ {[%emt 0:00:05]} 73. Bg5 {[%emt 0:00:05]} Bc4 {[%emt 0:00:03]} 74. Re3 {[%emt 0:00:15]} Rxg5+ {[%emt 0:00:42]} 75. hxg5 {[%emt 0:00:06]} Kxg5 {[%emt 0:00:08]} 76. Kf2 {[%emt 0:00:52]} Kf5 {[%emt 0:01:41]} 77. Rh3 {[%emt 0:00:38]} g6 {[%emt 0:00:10]} 78. Rh1 {[%emt 0:00:30]} Kg4 {[%emt 0:00:23]} 79. Rb1 {[%emt 0:00:34]} h4 {[%emt 0:00:44]} 80. Rb6 {[%emt 0:00:23]} Kf4 {[%emt 0:00:24]} 81. Rxc6 {[%emt 0:00:09]} e3+ {[%emt 0:00:04]} 82. Ke1 {[%emt 0:00:14]} g5 {[%emt 0:00:09]} 83. Rf6+ {[%emt 0:01:11]} Kg3 {[%emt 0:00:17]} 84. c6 {[%emt 0:00:34]} Ba6 {[%emt 0:00:12]} 85. c7 {[%emt 0:00:24]} Bb7 {[%emt 0:00:09]} 86. Rb6 {[%emt 0:00:40]} Bc8 {[%emt 0:00:04]} 87. Rb8 {[%emt 0:00:05]} Ba6 {[%emt 0:00:06]} 88. c8=Q {[%emt 0:00:36]} Bxc8 {[%emt 0:00:03]} 89. Rxc8 {[%emt 0:00:09]} Kxg2 {[%emt 0:00:19]} 90. Rg8 {[%emt 0:00:08]} h3 {[%emt 0:00:03]} 91. Rxg5+ {[%emt 0:00:04]} Kf3 {[%emt 0:00:06]} 92. Rxd5 {[%emt 0:00:11]} h2 {[%emt 0:00:08]} 93. Rh5 {[%emt 0:00:04]} Kg2 {[%emt 0:00:02]} 94. Ke2 {[%emt 0:00:06]} h1=Q {[%emt 0:00:07]} 95. Rxh1 {[%emt 0:00:03]} Kxh1 {[%emt 0:00:05]} 96. Kxe3 {[%emt 0:00:07]} 1-0